[Event "Late-Titled-Tuesday-Blitz-October-17-2023"]
[Site "Chess.com"]
[Date "2023.10.17"]
[Round "1"]
[White "nitpicker"]
[Black "NigelDwarf"]
[Result "1-0"]
[WhiteElo "2248"]
[BlackElo "2548"]
[TimeControl "180+1"]
[EndTime "14:07:37 PDT"]
[Termination "nitpicker won on time"]

1. d4 {[%clk 0:02:58.6]} 1... Nf6 {[%clk 0:02:58.7]} 2. c4 {[%clk 0:02:57.1]}
2... g6 {[%clk 0:02:56.8]} 3. Nc3 {[%clk 0:02:56.3]} 3... Bg7 {[%clk 0:02:55.8]}
4. e4 {[%clk 0:02:56.1]} 4... O-O {[%clk 0:02:55]} 5. Be2 {[%clk 0:02:56.2]}
5... d6 {[%clk 0:02:53.8]} 6. Nf3 {[%clk 0:02:55]} 6... e5 {[%clk 0:02:52]} 7.
O-O {[%clk 0:02:54.2]} 7... Nc6 {[%clk 0:02:50.3]} 8. d5 {[%clk 0:02:54.3]} 8...
Ne7 {[%clk 0:02:49.7]} 9. a4 {[%clk 0:02:54.9]} 9... a5 {[%clk 0:02:41]} 10. Ne1
{[%clk 0:02:54.1]} 10... Nd7 {[%clk 0:02:38.6]} 11. b3 {[%clk 0:02:49.9]} 11...
f5 {[%clk 0:02:36.5]} 12. f3 {[%clk 0:02:48.9]} 12... Nc5 {[%clk 0:02:16.3]} 13.
Nd3 {[%clk 0:02:47.5]} 13... Na6 {[%clk 0:02:14.2]} 14. Ba3 {[%clk 0:02:46]}
14... Bh6 {[%clk 0:02:13.1]} 15. b4 {[%clk 0:02:40.5]} 15... axb4 {[%clk
0:02:11.7]} 16. Nxb4 {[%clk 0:02:39.4]} 16... Be3+ {[%clk 0:02:07.7]} 17. Kh1
{[%clk 0:02:38.1]} 17... Nc5 {[%clk 0:02:02.4]} 18. Nc2 {[%clk 0:02:33.5]} 18...
Bh6 {[%clk 0:01:52.8]} 19. Bxc5 {[%clk 0:02:12]} 19... dxc5 {[%clk 0:01:53.7]}
20. a5 {[%clk 0:02:12.1]} 20... Rf6 {[%clk 0:01:44.4]} 21. Nb5 {[%clk
0:01:54.9]} 21... Bf8 {[%clk 0:01:31.2]} 22. Ra3 {[%clk 0:01:53]} 22... f4
{[%clk 0:01:24.2]} 23. Na1 {[%clk 0:01:52.5]} 23... g5 {[%clk 0:01:21.3]} 24.
Nb3 {[%clk 0:01:39.3]} 24... h5 {[%clk 0:01:11]} 25. Nxc5 {[%clk 0:01:06.3]}
25... Ng6 {[%clk 0:01:08.4]} 26. Nb3 {[%clk 0:00:57.2]} 26... Bxa3 {[%clk
0:01:06.4]} 27. Nxa3 {[%clk 0:00:58.1]} 27... Nh4 {[%clk 0:00:59.4]} 28. c5
{[%clk 0:00:56.8]} 28... Rg6 {[%clk 0:00:57.7]} 29. Nc4 {[%clk 0:00:47.1]} 29...
Qf6 {[%clk 0:00:50.8]} 30. Qa1 {[%clk 0:00:47]} 30... g4 {[%clk 0:00:43]} 31.
Qxe5 {[%clk 0:00:46.8]} 31... gxf3 {[%clk 0:00:41.2]} 32. Bxf3 {[%clk
0:00:33.8]} 32... Qa6 {[%clk 0:00:32.7]} 33. Qe8+ {[%clk 0:00:22.9]} 33... Kg7
{[%clk 0:00:30.3]} 34. Be2 {[%clk 0:00:20.6]} 34... Bg4 {[%clk 0:00:23.3]} 35.
Qe7+ {[%clk 0:00:19]} 35... Kg8 {[%clk 0:00:21]} 36. Bd3 {[%clk 0:00:15.4]}
36... f3 {[%clk 0:00:13.5]} 37. g3 {[%clk 0:00:13]} 37... Bh3 {[%clk 0:00:12.5]}
38. Rf2 {[%clk 0:00:10]} 38... Ng2 {[%clk 0:00:09]} 39. Ne5 {[%clk 0:00:08.2]}
39... Nf4 {[%clk 0:00:05.9]} 40. Bxa6 {[%clk 0:00:06.7]} 40... Bg2+ {[%clk
0:00:05.6]} 41. Rxg2 {[%clk 0:00:06.1]} 41... fxg2+ {[%clk 0:00:05.5]} 42. Kg1
{[%clk 0:00:06.5]} 42... Nh3+ {[%clk 0:00:02.3]} 43. Kxg2 {[%clk 0:00:06.4]} 1-0

[Event "Late-Titled-Tuesday-Blitz-October-17-2023"]
[Site "Chess.com"]
[Date "2023.10.17"]
[Round "1"]
[White "venturov"]
[Black "sergiochess83"]
[Result "0-1"]
[WhiteElo "2460"]
[BlackElo "2861"]
[TimeControl "180+1"]
[EndTime "14:07:39 PDT"]
[Termination "sergiochess83 won by resignation"]

1. e4 {[%clk 0:02:53.1]} 1... c5 {[%clk 0:03:00.1]} 2. Nf3 {[%clk 0:02:52.7]}
2... Nc6 {[%clk 0:03:00.7]} 3. d4 {[%clk 0:02:52.8]} 3... cxd4 {[%clk
0:03:01.6]} 4. Nxd4 {[%clk 0:02:53.5]} 4... Nf6 {[%clk 0:03:01.2]} 5. Nc3 {[%clk
0:02:53.8]} 5... e6 {[%clk 0:03:01.8]} 6. Ndb5 {[%clk 0:02:54.5]} 6... d6 {[%clk
0:02:54.8]} 7. Bf4 {[%clk 0:02:51.5]} 7... e5 {[%clk 0:02:54.7]} 8. Bg5 {[%clk
0:02:41.5]} 8... a6 {[%clk 0:02:54.6]} 9. Bxf6 {[%clk 0:02:38.6]} 9... gxf6
{[%clk 0:02:53]} 10. Na3 {[%clk 0:02:38.6]} 10... f5 {[%clk 0:02:40.5]} 11. exf5
{[%clk 0:02:03.5]} 11... Bxf5 {[%clk 0:02:36.5]} 12. Bd3 {[%clk 0:02:03.5]}
12... Be6 {[%clk 0:02:31.8]} 13. Bc4 {[%clk 0:01:45.8]} 13... Qg5 {[%clk
0:02:13.1]} 14. Bd5 {[%clk 0:01:19.2]} 14... O-O-O {[%clk 0:01:43.4]} 15. Qf3
{[%clk 0:01:07.8]} 15... Nd4 {[%clk 0:01:33.8]} 16. Qg3 {[%clk 0:00:41.2]} 16...
Qxg3 {[%clk 0:01:16]} 17. hxg3 {[%clk 0:00:42.1]} 17... b5 {[%clk 0:01:16.4]}
18. b4 {[%clk 0:00:29.2]} 18... Kd7 {[%clk 0:00:59.8]} 19. Kd2 {[%clk
0:00:20.5]} 19... h5 {[%clk 0:00:58.6]} 20. Rad1 {[%clk 0:00:15.5]} 20... Rc8
{[%clk 0:00:58.1]} 21. Nab1 {[%clk 0:00:14.6]} 21... Bxd5 {[%clk 0:00:51.9]} 22.
Nxd5 {[%clk 0:00:15.5]} 22... Rxc2+ {[%clk 0:00:52.1]} 23. Kd3 {[%clk
0:00:09.8]} 23... Rxf2 {[%clk 0:00:49.8]} 24. Nbc3 {[%clk 0:00:08]} 24... f5
{[%clk 0:00:46.2]} 25. Rdf1 {[%clk 0:00:04.4]} 25... Rxf1 {[%clk 0:00:44.3]} 26.
Rxf1 {[%clk 0:00:04]} 26... Bg7 {[%clk 0:00:44.7]} 27. a4 {[%clk 0:00:02.4]}
27... bxa4 {[%clk 0:00:28.7]} 28. Nxa4 {[%clk 0:00:02.5]} 28... h4 {[%clk
0:00:24.3]} 29. Rc1 {[%clk 0:00:02.5]} 29... e4+ {[%clk 0:00:20.2]} 30. Ke3
{[%clk 0:00:01.7]} 30... Bh6+ {[%clk 0:00:10.9]} 31. Kxd4 {[%clk 0:00:02.2]}
31... Bxc1 {[%clk 0:00:09.9]} 32. Nab6+ {[%clk 0:00:03.1]} 32... Ke6 {[%clk
0:00:09.7]} 33. Nc7+ {[%clk 0:00:02.9]} 33... Kf7 {[%clk 0:00:09.3]} 34. Kd5
{[%clk 0:00:02.8]} 34... hxg3 {[%clk 0:00:09.4]} 35. Kxd6 {[%clk 0:00:03.1]}
35... Rh2 {[%clk 0:00:09.1]} 36. Nbd5 {[%clk 0:00:02.5]} 36... Rxg2 {[%clk
0:00:08.9]} 37. Ne6 {[%clk 0:00:02.7]} 37... Rd2 {[%clk 0:00:07.5]} 38. Ng5+
{[%clk 0:00:02.6]} 38... Kg6 {[%clk 0:00:07.6]} 39. Nh3 {[%clk 0:00:02.3]} 39...
Rxd5+ {[%clk 0:00:05.7]} 40. Kxd5 {[%clk 0:00:02.5]} 40... g2 {[%clk 0:00:06.6]}
41. Ng1 {[%clk 0:00:01.7]} 41... Be3 {[%clk 0:00:06.3]} 42. Ne2 {[%clk
0:00:02.3]} 42... g1=Q {[%clk 0:00:06.8]} 43. Nxg1 {[%clk 0:00:02.6]} 43... Bxg1
{[%clk 0:00:07.7]} 44. b5 {[%clk 0:00:02.9]} 44... axb5 {[%clk 0:00:07.5]} 45.
Ke5 {[%clk 0:00:03.4]} 45... e3 {[%clk 0:00:07.8]} 46. Kf4 {[%clk 0:00:04.3]}
46... e2 {[%clk 0:00:08.7]} 47. Kf3 {[%clk 0:00:04.8]} 47... e1=Q {[%clk
0:00:09]} 0-1

[Event "Late-Titled-Tuesday-Blitz-October-17-2023"]
[Site "Chess.com"]
[Date "2023.10.17"]
[Round "1"]
[White "Cristi_Coca"]
[Black "Dacean99"]
[Result "1-0"]
[WhiteElo "2347"]
[BlackElo "2618"]
[TimeControl "180+1"]
[EndTime "14:07:41 PDT"]
[Termination "Cristi_Coca won by checkmate"]

1. e4 {[%clk 0:03:00.9]} 1... d6 {[%clk 0:02:58]} 2. d4 {[%clk 0:03:00.6]} 2...
Nf6 {[%clk 0:02:58.5]} 3. Nc3 {[%clk 0:03:00.5]} 3... g6 {[%clk 0:02:59.1]} 4.
h4 {[%clk 0:03:00.4]} 4... h5 {[%clk 0:02:58.4]} 5. Be3 {[%clk 0:02:59.1]} 5...
Bg7 {[%clk 0:02:56.5]} 6. f3 {[%clk 0:02:59.2]} 6... Nc6 {[%clk 0:02:49.1]} 7.
Qd2 {[%clk 0:02:57.4]} 7... e5 {[%clk 0:02:48]} 8. d5 {[%clk 0:02:50.4]} 8...
Nd4 {[%clk 0:02:41.6]} 9. Bxd4 {[%clk 0:02:44.1]} 9... exd4 {[%clk 0:02:42.5]}
10. Qxd4 {[%clk 0:02:43.9]} 10... O-O {[%clk 0:02:42.2]} 11. Qd2 {[%clk
0:02:39.7]} 11... a6 {[%clk 0:02:36.3]} 12. Nh3 {[%clk 0:02:38]} 12... b5 {[%clk
0:02:36]} 13. Ng5 {[%clk 0:02:36]} 13... b4 {[%clk 0:02:29.5]} 14. Ne2 {[%clk
0:02:34.8]} 14... Bd7 {[%clk 0:02:27.3]} 15. Nd4 {[%clk 0:02:32.8]} 15... Qb8
{[%clk 0:02:22.9]} 16. Be2 {[%clk 0:02:28.6]} 16... Qb6 {[%clk 0:02:18.1]} 17.
Rd1 {[%clk 0:02:21.9]} 17... Rfe8 {[%clk 0:02:12.8]} 18. Kf1 {[%clk 0:02:16.8]}
18... a5 {[%clk 0:02:11.3]} 19. Rg1 {[%clk 0:02:13.5]} 19... Bh6 {[%clk
0:02:09.6]} 20. Qd3 {[%clk 0:02:04.5]} 20... Re7 {[%clk 0:02:02.5]} 21. g3
{[%clk 0:01:47.1]} 21... Rae8 {[%clk 0:02:00.6]} 22. Kg2 {[%clk 0:01:44.9]}
22... a4 {[%clk 0:01:45.3]} 23. Kh2 {[%clk 0:01:44]} 23... Bc8 {[%clk
0:01:40.5]} 24. Rg2 {[%clk 0:01:42.2]} 24... a3 {[%clk 0:01:36.3]} 25. bxa3
{[%clk 0:01:35.1]} 25... bxa3 {[%clk 0:01:37.2]} 26. Qxa3 {[%clk 0:01:28.9]}
26... Bg7 {[%clk 0:01:36.4]} 27. Nc6 {[%clk 0:01:26.2]} 27... Rd7 {[%clk
0:01:32.2]} 28. Qb3 {[%clk 0:01:21.1]} 28... Qc5 {[%clk 0:01:29.4]} 29. Qb4
{[%clk 0:01:06]} 29... Qxc2 {[%clk 0:01:25.3]} 30. Nd4 {[%clk 0:00:53.7]} 30...
Qxa2 {[%clk 0:01:12.1]} 31. Bb5 {[%clk 0:00:52.1]} 31... Qa7 {[%clk 0:01:11.9]}
32. Bxd7 {[%clk 0:00:49.9]} 32... Bxd7 {[%clk 0:01:12.8]} 33. Nc6 {[%clk
0:00:46.8]} 33... Qe3 {[%clk 0:01:08.4]} 34. Qd4 {[%clk 0:00:38.5]} 34... Qb3
{[%clk 0:01:05.6]} 35. Qd3 {[%clk 0:00:37.4]} 35... Qa4 {[%clk 0:01:03.8]} 36.
Rdd2 {[%clk 0:00:34.5]} 36... Ra8 {[%clk 0:00:57.8]} 37. e5 {[%clk 0:00:26.4]}
37... dxe5 {[%clk 0:00:54.5]} 38. Nxe5 {[%clk 0:00:27.3]} 38... Be8 {[%clk
0:00:54.8]} 39. d6 {[%clk 0:00:20.6]} 39... cxd6 {[%clk 0:00:54.3]} 40. Qxd6
{[%clk 0:00:21.5]} 40... Qa5 {[%clk 0:00:49.6]} 41. Qe7 {[%clk 0:00:20.9]} 41...
Ra7 {[%clk 0:00:40.9]} 42. Qd8 {[%clk 0:00:21.2]} 42... Qxe5 {[%clk 0:00:39.7]}
43. Rge2 {[%clk 0:00:20.2]} 43... Qb5 {[%clk 0:00:37.2]} 44. Rb2 {[%clk
0:00:18.9]} 44... Qa4 {[%clk 0:00:35.9]} 45. Ra2 {[%clk 0:00:17.7]} 45... Qxa2
{[%clk 0:00:36.2]} 46. Rxa2 {[%clk 0:00:18.5]} 46... Rxa2+ {[%clk 0:00:36.5]}
47. Kg1 {[%clk 0:00:17.6]} 47... Ra1+ {[%clk 0:00:36.4]} 48. Kf2 {[%clk
0:00:17.1]} 48... Ra2+ {[%clk 0:00:37.3]} 49. Kg1 {[%clk 0:00:17.1]} 49... Ra7
{[%clk 0:00:34.5]} 50. Ne4 {[%clk 0:00:14.9]} 50... Ra1+ {[%clk 0:00:29.2]} 51.
Kg2 {[%clk 0:00:14.6]} 51... Ra2+ {[%clk 0:00:28.7]} 52. Kh3 {[%clk 0:00:14.6]}
52... Kf8 {[%clk 0:00:26.7]} 53. Nxf6 {[%clk 0:00:14.3]} 53... Bxf6 {[%clk
0:00:27.2]} 54. Qxf6 {[%clk 0:00:14.6]} 54... Bd7+ {[%clk 0:00:27.7]} 55. g4
{[%clk 0:00:15.3]} 55... hxg4+ {[%clk 0:00:28.1]} 56. fxg4 {[%clk 0:00:16.1]}
56... Ra3+ {[%clk 0:00:28.6]} 57. Kg2 {[%clk 0:00:15.9]} 57... Ra2+ {[%clk
0:00:28.6]} 58. Kf3 {[%clk 0:00:16.1]} 58... Ra3+ {[%clk 0:00:28.1]} 59. Kf4
{[%clk 0:00:16.3]} 59... Ra4+ {[%clk 0:00:28.5]} 60. Kg5 {[%clk 0:00:15.3]}
60... Rxg4+ {[%clk 0:00:27.9]} 61. Kh6 {[%clk 0:00:16]} 61... Be6 {[%clk
0:00:28.5]} 62. Qd8# {[%clk 0:00:15.6]} 1-0

[Event "Late-Titled-Tuesday-Blitz-October-17-2023"]
[Site "Chess.com"]
[Date "2023.10.17"]
[Round "1"]
[White "adrivillu"]
[Black "jaskol95"]
[Result "1/2-1/2"]
[WhiteElo "2313"]
[BlackElo "2598"]
[TimeControl "180+1"]
[EndTime "14:07:42 PDT"]
[Termination "Game drawn - insufficient material"]

1. e4 {[%clk 0:02:59.4]} 1... c5 {[%clk 0:02:59.2]} 2. Nc3 {[%clk 0:02:55.2]}
2... e6 {[%clk 0:02:58]} 3. f4 {[%clk 0:02:53.6]} 3... d5 {[%clk 0:02:57.5]} 4.
Nf3 {[%clk 0:02:53.7]} 4... Nc6 {[%clk 0:02:50.2]} 5. Bb5 {[%clk 0:02:52.7]}
5... dxe4 {[%clk 0:02:49.6]} 6. Bxc6+ {[%clk 0:02:47.7]} 6... bxc6 {[%clk
0:02:49.5]} 7. Nxe4 {[%clk 0:02:47.9]} 7... Nf6 {[%clk 0:02:48.6]} 8. d3 {[%clk
0:02:44.5]} 8... c4 {[%clk 0:02:42.9]} 9. Nxf6+ {[%clk 0:02:32.3]} 9... Qxf6
{[%clk 0:02:42.4]} 10. d4 {[%clk 0:02:12.1]} 10... c5 {[%clk 0:02:18.1]} 11. Be3
{[%clk 0:02:08.7]} 11... Bb7 {[%clk 0:02:01.8]} 12. O-O {[%clk 0:02:07.5]} 12...
Be7 {[%clk 0:02:01.6]} 13. c3 {[%clk 0:02:00.4]} 13... cxd4 {[%clk 0:01:58.1]}
14. Qa4+ {[%clk 0:01:47.8]} 14... Kf8 {[%clk 0:01:55.9]} 15. Bxd4 {[%clk
0:01:47.6]} 15... Qg6 {[%clk 0:01:53.8]} 16. f5 {[%clk 0:01:41.3]} 16... exf5
{[%clk 0:01:45.5]} 17. Rae1 {[%clk 0:01:21.5]} 17... Qc6 {[%clk 0:01:33.8]} 18.
Qc2 {[%clk 0:01:10.3]} 18... Bc5 {[%clk 0:01:17.6]} 19. Ne5 {[%clk 0:00:41.8]}
19... Bxd4+ {[%clk 0:01:16.8]} 20. cxd4 {[%clk 0:00:40.8]} 20... Qd5 {[%clk
0:01:07.5]} 21. Rxf5 {[%clk 0:00:31.7]} 21... Qxd4+ {[%clk 0:01:06.8]} 22. Kh1
{[%clk 0:00:31.7]} 22... f6 {[%clk 0:00:55.9]} 23. Nf3 {[%clk 0:00:22.6]} 23...
Qd3 {[%clk 0:00:50.6]} 24. Nd4 {[%clk 0:00:08.4]} 24... Qxc2 {[%clk 0:00:48.6]}
25. Nxc2 {[%clk 0:00:09.3]} 25... Re8 {[%clk 0:00:43.5]} 26. Rc5 {[%clk
0:00:09.4]} 26... Rxe1+ {[%clk 0:00:35.3]} 27. Nxe1 {[%clk 0:00:10.3]} 27... Rg8
{[%clk 0:00:20.3]} 28. Rc7 {[%clk 0:00:10.3]} 28... Bd5 {[%clk 0:00:20]} 29.
Rxa7 {[%clk 0:00:09.9]} 29... h5 {[%clk 0:00:18.1]} 30. h3 {[%clk 0:00:09.7]}
30... g5 {[%clk 0:00:17.8]} 31. Nc2 {[%clk 0:00:10]} 31... Rg7 {[%clk
0:00:18.3]} 32. Rxg7 {[%clk 0:00:08.5]} 32... Kxg7 {[%clk 0:00:18.8]} 33. Ne3
{[%clk 0:00:09.3]} 33... Be6 {[%clk 0:00:18.8]} 34. Kg1 {[%clk 0:00:09.8]} 34...
f5 {[%clk 0:00:19.1]} 35. Kf2 {[%clk 0:00:10.2]} 35... f4 {[%clk 0:00:19.4]} 36.
Nd1 {[%clk 0:00:10.6]} 36... Kf6 {[%clk 0:00:19.7]} 37. Nc3 {[%clk 0:00:11]}
37... Ke5 {[%clk 0:00:20]} 38. a4 {[%clk 0:00:11]} 38... g4 {[%clk 0:00:19.1]}
39. hxg4 {[%clk 0:00:10.5]} 39... hxg4 {[%clk 0:00:20]} 40. a5 {[%clk
0:00:10.1]} 40... Bd7 {[%clk 0:00:20.6]} 41. Ne2 {[%clk 0:00:10.2]} 41... Bc6
{[%clk 0:00:20.2]} 42. g3 {[%clk 0:00:10.3]} 42... f3 {[%clk 0:00:15.7]} 43. Nc3
{[%clk 0:00:09.7]} 43... Kd4 {[%clk 0:00:15.9]} 44. Nd1 {[%clk 0:00:09]} 44...
Kd3 {[%clk 0:00:15.6]} 45. Ne3 {[%clk 0:00:09.4]} 45... Bb5 {[%clk 0:00:13.8]}
46. Nxg4 {[%clk 0:00:08.8]} 46... Kc2 {[%clk 0:00:14.5]} 47. Ne5 {[%clk
0:00:09]} 47... Kxb2 {[%clk 0:00:12.6]} 48. Nxc4+ {[%clk 0:00:09.2]} 48... Bxc4
{[%clk 0:00:13.1]} 49. g4 {[%clk 0:00:08.4]} 49... Kc3 {[%clk 0:00:13.5]} 50. g5
{[%clk 0:00:08.6]} 50... Kb4 {[%clk 0:00:13.9]} 51. Kxf3 {[%clk 0:00:07.6]}
51... Kxa5 {[%clk 0:00:14.5]} 52. Kf4 {[%clk 0:00:08.5]} 52... Kb6 {[%clk
0:00:14.8]} 53. g6 {[%clk 0:00:09.4]} 53... Kc7 {[%clk 0:00:15.5]} 54. g7 {[%clk
0:00:10.3]} 54... Kd7 {[%clk 0:00:16]} 55. g8=Q {[%clk 0:00:11.2]} 55... Bxg8
{[%clk 0:00:16.4]} 1/2-1/2

[Event "Late-Titled-Tuesday-Blitz-October-17-2023"]
[Site "Chess.com"]
[Date "2023.10.17"]
[Round "1"]
[White "TigrVShlyape"]
[Black "Laico"]
[Result "1-0"]
[WhiteElo "2824"]
[BlackElo "2441"]
[TimeControl "180+1"]
[EndTime "14:07:47 PDT"]
[Termination "TigrVShlyape won by resignation"]

1. e4 {[%clk 0:02:59.4]} 1... e6 {[%clk 0:02:59.4]} 2. d4 {[%clk 0:02:58.7]}
2... d5 {[%clk 0:03:00.1]} 3. Nc3 {[%clk 0:02:58.9]} 3... Nf6 {[%clk 0:02:59]}
4. e5 {[%clk 0:02:58.9]} 4... Nfd7 {[%clk 0:02:58.1]} 5. f4 {[%clk 0:02:59.4]}
5... c5 {[%clk 0:02:58.7]} 6. Nf3 {[%clk 0:02:59.7]} 6... Nc6 {[%clk 0:02:59.4]}
7. Ne2 {[%clk 0:03:00.2]} 7... cxd4 {[%clk 0:03:00.1]} 8. Nexd4 {[%clk
0:03:00.1]} 8... Bc5 {[%clk 0:02:59.9]} 9. c3 {[%clk 0:02:59.6]} 9... O-O {[%clk
0:02:59]} 10. Be3 {[%clk 0:02:54.9]} 10... Qe7 {[%clk 0:02:59.1]} 11. Bb5 {[%clk
0:02:35.7]} 11... Ndb8 {[%clk 0:02:47.2]} 12. O-O {[%clk 0:02:32.8]} 12... Bd7
{[%clk 0:02:46.8]} 13. Bd3 {[%clk 0:02:31.7]} 13... f6 {[%clk 0:02:39.5]} 14.
exf6 {[%clk 0:02:28.9]} 14... Qxf6 {[%clk 0:02:40.4]} 15. Qc2 {[%clk 0:02:25.1]}
15... h6 {[%clk 0:02:38.8]} 16. Rae1 {[%clk 0:02:24.6]} 16... Na6 {[%clk
0:02:32]} 17. Nxc6 {[%clk 0:02:17.6]} 17... Bxe3+ {[%clk 0:02:30.1]} 18. Rxe3
{[%clk 0:02:17.4]} 18... Bxc6 {[%clk 0:02:29.3]} 19. Ne5 {[%clk 0:02:16.4]}
19... Be8 {[%clk 0:02:25.8]} 20. Qe2 {[%clk 0:02:06.8]} 20... Nc5 {[%clk
0:02:24.5]} 21. Bb1 {[%clk 0:02:05.1]} 21... a6 {[%clk 0:02:23.5]} 22. Rg3
{[%clk 0:01:54.7]} 22... Bb5 {[%clk 0:02:14.4]} 23. Qc2 {[%clk 0:01:45.1]} 23...
Ne4 {[%clk 0:02:14.4]} 24. c4 {[%clk 0:01:44.8]} 24... Rac8 {[%clk 0:02:13.6]}
25. b3 {[%clk 0:01:41.4]} 25... Be8 {[%clk 0:01:22.4]} 26. Re3 {[%clk
0:01:23.9]} 26... Rc7 {[%clk 0:01:11.2]} 27. Qd1 {[%clk 0:01:19]} 27... Bc6
{[%clk 0:00:30]} 28. Bxe4 {[%clk 0:01:06.6]} 28... dxe4 {[%clk 0:00:28.9]} 29.
Nxc6 {[%clk 0:01:05.8]} 29... Rxc6 {[%clk 0:00:25.2]} 30. Rxe4 {[%clk
0:01:06.2]} 30... Qe7 {[%clk 0:00:21.2]} 31. Qe2 {[%clk 0:01:04.4]} 31... Qc5+
{[%clk 0:00:18.9]} 32. Kh1 {[%clk 0:01:02.1]} 32... Rf6 {[%clk 0:00:15.3]} 33.
h3 {[%clk 0:01:01.6]} 33... Rd6 {[%clk 0:00:13.9]} 34. Kh2 {[%clk 0:00:57]}
34... Qc7 {[%clk 0:00:10.6]} 35. Re5 {[%clk 0:00:52.7]} 35... Rd4 {[%clk
0:00:08.3]} 36. Qe3 {[%clk 0:00:51.7]} 36... Qd6 {[%clk 0:00:06.6]} 37. Rf2
{[%clk 0:00:49.6]} 37... Rd1 {[%clk 0:00:06.1]} 38. c5 {[%clk 0:00:47.9]} 38...
Qd4 {[%clk 0:00:05.7]} 39. Rxe6 {[%clk 0:00:38.9]} 39... Qxe3 {[%clk 0:00:01.7]}
40. Rxe3 {[%clk 0:00:38.4]} 40... Rc6 {[%clk 0:00:01.7]} 41. b4 {[%clk
0:00:38.1]} 41... Rb1 {[%clk 0:00:01.2]} 42. a3 {[%clk 0:00:38]} 42... a5 {[%clk
0:00:01.8]} 43. Re4 {[%clk 0:00:36.4]} 43... axb4 {[%clk 0:00:02.4]} 44. axb4
{[%clk 0:00:36.2]} 44... b6 {[%clk 0:00:03]} 45. Rc2 {[%clk 0:00:35.1]} 45...
bxc5 {[%clk 0:00:02.7]} 46. bxc5 {[%clk 0:00:35.4]} 46... Rb5 {[%clk 0:00:02.4]}
47. Re5 {[%clk 0:00:35.4]} 47... Kf7 {[%clk 0:00:03.3]} 48. h4 {[%clk
0:00:32.3]} 48... Kf6 {[%clk 0:00:03.3]} 49. Kh3 {[%clk 0:00:31.4]} 49... g5
{[%clk 0:00:03.3]} 50. hxg5+ {[%clk 0:00:31.4]} 50... hxg5 {[%clk 0:00:04.2]}
51. Rxg5 {[%clk 0:00:31.7]} 51... Rb4 {[%clk 0:00:04.5]} 52. g3 {[%clk
0:00:31.6]} 52... Rc8 {[%clk 0:00:04.4]} 53. c6 {[%clk 0:00:30.9]} 53... Rc7
{[%clk 0:00:03.7]} 54. Kg4 {[%clk 0:00:30.8]} 54... Rb1 {[%clk 0:00:03.6]} 55.
Rh2 {[%clk 0:00:30.5]} 55... Rb6 {[%clk 0:00:01.5]} 56. Rh6+ {[%clk 0:00:30.4]}
56... Kf7 {[%clk 0:00:02]} 57. Rh7+ {[%clk 0:00:30.5]} 57... Kf6 {[%clk
0:00:02.9]} 58. Rxc7 {[%clk 0:00:30.6]} 58... Rb4 {[%clk 0:00:02.4]} 59. Rcg7
{[%clk 0:00:29.4]} 59... Rxf4+ {[%clk 0:00:03.3]} 60. gxf4 {[%clk 0:00:29.1]}
1-0

[Event "Late-Titled-Tuesday-Blitz-October-17-2023"]
[Site "Chess.com"]
[Date "2023.10.17"]
[Round "1"]
[White "matagordo"]
[Black "MFatigue"]
[Result "0-1"]
[WhiteElo "2293"]
[BlackElo "2592"]
[TimeControl "180+1"]
[EndTime "14:07:48 PDT"]
[Termination "MFatigue won on time"]

1. d4 {[%clk 0:03:00.9]} 1... d5 {[%clk 0:02:59.1]} 2. Bf4 {[%clk 0:03:01.3]}
2... Nf6 {[%clk 0:02:58.9]} 3. e3 {[%clk 0:03:01.8]} 3... e6 {[%clk 0:02:59.3]}
4. Nf3 {[%clk 0:03:02.3]} 4... c5 {[%clk 0:03:00]} 5. Nbd2 {[%clk 0:03:02.1]}
5... Bd6 {[%clk 0:03:00.6]} 6. Ne5 {[%clk 0:03:02.6]} 6... O-O {[%clk 0:03:00]}
7. c3 {[%clk 0:03:02.4]} 7... Nc6 {[%clk 0:03:00.1]} 8. Bd3 {[%clk 0:03:02.8]}
8... Qc7 {[%clk 0:02:46.2]} 9. Ndf3 {[%clk 0:03:02.5]} 9... Ne4 {[%clk
0:02:43.1]} 10. O-O {[%clk 0:03:02.4]} 10... f5 {[%clk 0:02:40.3]} 11. Nxc6
{[%clk 0:03:00.1]} 11... Bxf4 {[%clk 0:02:33.8]} 12. Ne7+ {[%clk 0:02:47.2]}
12... Qxe7 {[%clk 0:02:32.8]} 13. exf4 {[%clk 0:02:47.5]} 13... c4 {[%clk
0:02:13.7]} 14. Bxe4 {[%clk 0:02:46.7]} 14... fxe4 {[%clk 0:02:12.5]} 15. Ne5
{[%clk 0:02:46.7]} 15... Rxf4 {[%clk 0:02:10.7]} 16. Re1 {[%clk 0:02:34.4]}
16... Bd7 {[%clk 0:02:09]} 17. Re3 {[%clk 0:02:31.3]} 17... Raf8 {[%clk
0:02:08.8]} 18. Qe1 {[%clk 0:02:23.4]} 18... Be8 {[%clk 0:01:59.8]} 19. g3
{[%clk 0:02:14.4]} 19... R4f5 {[%clk 0:01:57.1]} 20. Qe2 {[%clk 0:02:07.5]}
20... b5 {[%clk 0:01:50.5]} 21. Rf1 {[%clk 0:02:04.5]} 21... a5 {[%clk
0:01:49.9]} 22. Qg4 {[%clk 0:02:01.9]} 22... Qf6 {[%clk 0:01:45.5]} 23. f4
{[%clk 0:01:55.5]} 23... exf3 {[%clk 0:01:26.3]} 24. Rexf3 {[%clk 0:01:53.7]}
24... b4 {[%clk 0:00:53.9]} 25. Rxf5 {[%clk 0:01:43.2]} 25... exf5 {[%clk
0:00:54.1]} 26. Qf3 {[%clk 0:01:43.5]} 26... Qe6 {[%clk 0:00:48.5]} 27. g4
{[%clk 0:01:34.5]} 27... g6 {[%clk 0:00:30.3]} 28. Kh1 {[%clk 0:01:27.4]} 28...
Kg7 {[%clk 0:00:27.9]} 29. h4 {[%clk 0:01:27]} 29... h6 {[%clk 0:00:22.1]} 30.
Qf4 {[%clk 0:01:14.7]} 30... Rf6 {[%clk 0:00:19.3]} 31. g5 {[%clk 0:01:14.8]}
31... hxg5 {[%clk 0:00:17.6]} 32. Qxg5 {[%clk 0:01:15.2]} 32... f4 {[%clk
0:00:15.5]} 33. Rf3 {[%clk 0:01:12.8]} 33... Qf5 {[%clk 0:00:13]} 34. Qg1 {[%clk
0:00:41.8]} 34... Qe4 {[%clk 0:00:10]} 35. Qg2 {[%clk 0:00:39.2]} 35... Rf5
{[%clk 0:00:09]} 36. h5 {[%clk 0:00:37.2]} 36... Qe1+ {[%clk 0:00:09.1]} 37. Rf1
{[%clk 0:00:36]} 37... Rxh5+ {[%clk 0:00:09.3]} 38. Kg1 {[%clk 0:00:36.3]} 38...
Qe3+ {[%clk 0:00:09.8]} 39. Rf2 {[%clk 0:00:36.7]} 39... Rf5 {[%clk 0:00:06.8]}
40. Qxd5 {[%clk 0:00:36]} 40... Rg5+ {[%clk 0:00:05.6]} 41. Kf1 {[%clk
0:00:27.6]} 41... Qc1+ {[%clk 0:00:05.9]} 42. Ke2 {[%clk 0:00:27.4]} 42... Qc2+
{[%clk 0:00:05.4]} 43. Kf3 {[%clk 0:00:25.2]} 43... Rg3+ {[%clk 0:00:06]} 44.
Kxf4 {[%clk 0:00:24.6]} 44... Qxf2+ {[%clk 0:00:06.7]} 45. Ke4 {[%clk
0:00:21.1]} 45... Qg2+ {[%clk 0:00:05.7]} 0-1